[Event "79th GEO-ch 2020"]
[Site "Tbilisi"]
[Date "2020.02.08"]
[Round "4.2"]
[White "Morchiashvili, Bachana"]
[Black "Nigalidze, Gaioz"]
[Result "0-1"]
[ECO "A45"]
[WhiteElo "2312"]
[BlackElo "2474"]
[Annotator "ChessBase"]
[PlyCount "74"]
[EventDate "2020.01.29"]
[EventType "k.o."]
[EventCountry "GEO"]
[SourceTitle "playchess.com"]
[Source "ChessBase"]
[SourceQuality "1"]
[TimeControl "40/5400+30:1800+30"]

1. d4 {[%emt 0:00:00]} Nf6 {[%emt 0:00:00]} 2. Bg5 {[%emt 0:00:00]} e6 {[%emt 0:00:00]} 3. e4 {[%emt 0:00:00]} h6 {[%emt 0:00:00]} 4. Bxf6 {[%emt 0:00:00]} Qxf6 {[%emt 0:00:06]} 5. c3 {[%emt 0:00:00]} d6 {[%emt 0:00:22]} 6. Bd3 {[%emt 0:00:09]} Nd7 {[%emt 0:09:01]} 7. Ne2 {[%emt 0:00:24]} a6 {[%emt 0:04:15]} 8. O-O {[%emt 0:01:18]} b6 {[%emt 0:00:01]} 9. f4 {[%emt 0:04:07]} Bb7 {[%emt 0:02:56]} 10. Nd2 {[%emt 0:01:26]} Qe7 {[%emt 0:01:24]} 11. f5 {[%emt 0:12:14]} e5 {[%emt 0:00:29]} 12. Qa4 {[%emt 0:00:41]} Qg5 {[%emt 0:01:39]} 13. Qc2 {[%emt 0:04:15]} h5 {[%emt 0:01:08]} 14. Rae1 {[%emt 0:03:37]} Be7 {[%emt 0:04:48]} 15. a4 {[%emt 0:06:34]} Nf6 {[%emt 0:06:46]} 16. Nf3 {[%emt 0:09:02]} Qe3+ {[%emt 0:04:37]} 17. Kh1 {[%emt 0:00:08]} Ng4 {[%emt 0:07:59]} 18. Nc1 {[%emt 0:16:09]} Qf4 {[%emt 0:07:05]} 19. Qe2 {[%emt 0:02:30]} Qh6 {[%emt 0:07:21]} 20. a5 {[%emt 0:07:50]} h4 {[%emt 0:06:05]} 21. axb6 {[%emt 0:02:22]} cxb6 {[%emt 0:00:22]} 22. Nxe5 {[%emt 0:02:51]} Nxe5 {[%emt 0:03:29]} 23. dxe5 {[%emt 0:00:04]} dxe5 {[%emt 0:00:07]} 24. Bc4 {[%emt 0:03:01]} h3 {[%emt 0:01:34]} 25. g3 {[%emt 0:03:16]} Rd8 {[%emt 0:08:38]} 26. Bxa6 {[%emt 0:04:04]} Rd2 {[%emt 0:05:22]} 27. Qb5+ {[%emt 0:03:36]} Bc6 {[%emt 0:02:56]} 28. Qc4 {[%emt 0:04:25]} O-O {[%emt 0:04:24]} 29. f6 {[%emt 0:00:37]} Bc5 {[%emt 0:00:42]} 30. Nd3 {[%emt 0:08:13]} gxf6 {[%emt 0:04:43]} 31. b4 {[%emt 0:01:22]} Rg2 {[%emt 0:05:09]} 32. bxc5 {[%emt 0:01:08]} Qd2 {[%emt 0:00:18]} 33. Nf2 {[%emt 0:00:31]} Rxf2 {[%emt 0:00:28]} 34. Rxf2 {[%emt 0:00:09]} Qxe1+ {[%emt 0:00:44]} 35. Rf1 {[%emt 0:00:02]} Qe3 {[%emt 0:01:13]} 36. Bb7 {[%emt 0:01:19]} b5 {[%emt 0:00:36]} 37. Qd4 {[%emt 0:00:32]} exd4 {[%emt 0:00:09]} 0-1